Cogmind - Beta 14 @@@ ROGUE MODE // 2025.01.11 @ 16:23:26 Player: Anting Result: Destroyed by as-72809 with Assembled Heavy Rifle Performance ------------- Evolutions (0) 0 Regions Visited (2) 400 Robots Destroyed (22) 110 Value Destroyed (494) 494 Prototype IDs (0) 0 Alien Tech Used (0) 0 Bonus (0) 0 TOTAL SCORE: 1004 Bonus ------- None Cogmind --------- Core Integrity 0/250 Matter 237/300 Energy 250/250 System Corruption 2% Temperature Hot (256) Movement Treading (160) Location -10/Mines Parts ------- > --- POWER (1) -------- Ion Engine > --- PROPULSION (2) --- Light Treads Light Treads > --- UTILITY (2) ------ Large Storage Unit Seismic Detector > --- WEAPON (2) ------- Beam Cannon > --- INVENTORY (15) --- Ion Engine Aluminum Leg Aluminum Leg Aluminum Leg Improved Heat Sink Medium Storage Unit Improved Terrain Scanner Hacking Suite Light Assault Rifle Light Assault Rifle Light Assault Rifle Light Assault Rifle Peak State ------------ > --- POWER ------------ Light Nuclear Core > --- PROPULSION ------- Light Treads Light Treads > --- UTILITY ---------- Small Storage Unit Seismic Detector > --- WEAPON ----------- Beam Cannon Light Assault Rifle > --- INVENTORY -------- Ion Engine Light Ion Engine Aluminum Leg Improved Heat Sink Improved Terrain Scanner Mining Laser [Rating: 10] Favorites ----------- Power Light Nuclear Core Engine Light Ion Engine Power Core Light Nuclear Core Propulsion Light Treads Treads Light Treads Utility Seismic Detector Device Seismic Detector Storage Large Storage Unit Weapon Beam Cannon Energy Gun Small Laser Energy Cannon Beam Cannon Ballistic Gun Light Assault Rifle Ballistic Cannon Light Cannon Special Weapon Mining Laser Build | -11 -10 -10 ------- Run | Yrd Mat Min Slots Evolved . | . . . Power . | . . . Propulsion . | . . . Utility . | . . . Weapon . | . . . Parts Attached 17 | 7 9 1 Power 3 | 1 2 . Engine 2 | 1 1 . Core 1 | . 1 . Reactor . | . . . Propulsion 3 | 2 1 . Treads 3 | 2 1 . Leg . | . . . Wheel . | . . . Hover . | . . . Flight . | . . . Utility 5 | 2 3 . Device 2 | 1 1 . Storage 3 | 1 2 . Processor . | . . . Hackware . | . . . Protection . | . . . Artifact . | . . . Weapon 6 | 2 3 1 Energy Gun 1 | 1 . . Energy Cannon 2 | . 1 1 Ballistic Gun 1 | 1 . . Ballistic Cannon 1 | . 1 . Launcher . | . . . Special Weapon 1 | . 1 . Impact Weapon . | . . . Slashing Weapon . | . . . Piercing Weapon . | . . . Special Melee Weapon . | . . . Unidentified Prototypes . | . . . Parts Lost 3 | . 2 1 Power 1 | . 1 . Propulsion . | . . . Utility 1 | . 1 . Weapon 1 | . . 1 Highest Loss Streak 1 | . 1 1 To Critical Strikes . | . . . Average Slot Usage (%) 97 | . 97 97 Engine 6 | . 6 14 Core 7 | . 7 . Treads 27 | . 27 28 Device 12 | . 12 14 Storage 15 | . 15 14 Energy Gun 1 | . 1 . Energy Cannon 12 | . 12 11 Ballistic Gun 4 | . 5 . Ballistic Cannon 7 | . 7 14 Peak Build Rating 10 | 7 10 8 Average Rating 8 | 4 8 7 On Entrance 5 | . 7 8 Naked Turns . | . . . Heaviest Build 41 | 11 41 32 Greatest Support 40 | 40 40 40 Greatest Overweight (x) 1 | . 1 . Average Overweight (x) . | . . . Largest Inventory Capacity 15 | 8 15 15 Average Capacity 11 | 7 11 15 Most Carried 14 | 5 14 13 Average Carried 8 | 1 8 12 Final Capacity 15 | 8 15 15 Final Carried 13 | 3 13 12 Class Distribution -------------------- 100% | Mutant Dominant Class ---------------- Mutant | -10/Materials Mutant | -10/Mines Resources | -11 -10 -10 ----------- Run | Yrd Mat Min Matter Collected 495 | 266 203 26 Remotely . | . . . Salvage Created 519 | 29 473 17 Parts 50 | 6 44 . Haulers Intercepted . | . . . Recyclers Shooed . | . . . Parts Field Recycled . | . . . Retrieved Matter . | . . . Parts Self-Destructed . | . . . Prevented . | . . . Kills | -11 -10 -10 ------- Run | Yrd Mat Min Combat Hostiles Destroyed 21 | . 18 3 Cannons 21 | . 18 3 Classes Destroyed 5 | 1 3 1 Tunneler 1 | 1 . . Operator 3 | . 3 . Swarmer 9 | . 9 . Grunt 9 | . 9 . Assembled 3 | . . 3 Best Kill Streak 7 | 1 7 2 Combat Bots Only 7 | . 7 2 Max Kills in Single Turn 1 | 1 1 1 Gunslinging . | . . . Exploded . | . . . Melee . | . . . Uniques/NPCs Destroyed . | . . . Combat | -11 -10 -10 -------- Run | Yrd Mat Min Hostile Shots Fired 125 | . 85 40 Missed 30 | . 24 6 Damage Taken 1081 | . 611 470 Core 257 | . 131 126 Absorbed by Shields . | . . . Regen/Repaired (Parts) 105 | . 105 . Core Remaining (%) 100 | 100 . . Volleys Fired 68 | 6 46 16 Largest 2 | 2 2 2 Hottest 100 | 60 100 95 Shots Fired 129 | 12 89 28 Gun 29 | 12 17 . Cannon 99 | . 71 28 Launcher . | . . . Special 1 | . 1 . Kinetic 64 | 6 42 16 Thermal 65 | 6 47 12 Explosive . | . . . Electromagnetic . | . . . Robot Hit Streak 7 | 4 7 6 Robot Miss Streak 5 | 5 4 4 Penetration Max . | . . . Secondary Targets . | . . . Shots Hit Robots 68 | 6 45 17 Core Hits 36 | 3 25 8 Critical Kills . | . . . Critical Parts Destroyed . | . . . Critical Strikes 1 | . 1 . Blast 1 | . 1 . Melee Attacks . | . . . Impact . | . . . Slashing . | . . . Piercing . | . . . Sneak Attacks . | . . . Combat Hostiles . | . . . Follow-up Attacks . | . . . Damage Inflicted 1136 | 63 756 317 Guns 99 | 63 36 . Cannons 1037 | . 720 317 Explosions . | . . . Melee . | . . . Ramming . | . . . Kinetic 533 | 20 318 195 Thermal 603 | 43 438 122 Explosive . | . . . Electromagnetic . | . . . Impact . | . . . Slashing . | . . . Piercing . | . . . Highest Corruption 2 | . 2 2 Average Corruption 1 | . 1 2 Corruption Purged . | . . . Corruption Blocked . | . . . Effects 10 | . 9 1 Message Errors 2 | . 2 . Matter Fused 1 | . 1 . Heat Flow Errors 2 | . 2 . Energy Discharges 1 | . 1 . Parts Rejected 1 | . . 1 Misfires 2 | . 2 . Weapon Failures 1 | . 1 . Overload Shots . | . . . Overflow Damage 17 | . 9 8 Projectiles 17 | . 9 8 Explosions . | . . . Melee . | . . . Knockbacks 9 | . 4 5 Impact . | . . . Kinetic 9 | . 4 5 Secondary . | . . . Self-Inflicted Damage . | . . . Shots . | . . . Rammed . | . . . Targets Rammed . | . . . Kicked . | . . . Crushed . | . . . Highest Temperature 394 | 40 394 256 Average Temperature 100 | 22 111 75 Received Heat Transfer 363 | . 243 120 Effects 1 | . 1 . Shutdowns 1 | . 1 . Siege Activations . | . . . Robots Corrupted . | . . . Combat Hostiles . | . . . Parts Fried . | . . . Impact Corruptions . | . . . Robots Melted . | . . . Combat Hostiles . | . . . Parts Melted 1 | . 1 . Heat Transferred 1284 | 100 925 259 Parts Sabotaged . | . . . Parts Stolen . | . . . Parts Stripped . | . . . Power Chain Reactions . | . . . Alert | -11 -10 -10 ------- Run | Yrd Mat Min Peak Influence 308 | 5 308 87 Initial 87 | . 3 87 Average 127 | 1 140 82 Maximum Alert Level 1 | . 1 . Low Security (%) 68 | 100 64 100 Level 1 31 | . 35 . Level 2 . | . . . Level 3 . | . . . Level 4 . | . . . Level 5 . | . . . High Security . | . . . Max Security . | . . . Squads Dispatched 4 | . 4 . Investigation 2 | . 2 . Extermination . | . . . Reinforcement 2 | . 2 . Assault . | . . . Garrison . | . . . Intercept . | . . . Searches Triggered . | . . . Construction Impeded . | . . . Haulers Reinforced . | . . . Active Scanning Responses . | . . . Cargo Convoy Interrupts . | . . . Stealth | -11 -10 -10 --------- Run | Yrd Mat Min Distress Signals 2 | . 2 . Communications Jammed . | . . . Distress Signals . | . . . Times Spotted 45 | . 32 13 Peak Tracking Total 6 | . 6 6 Tactical Retreats 4 | . 2 2 Traps | -11 -10 -10 ------- Run | Yrd Mat Min Traps Triggered 1 | . 1 . Indirectly . | . . . Trap Hack Attempts . | . . . Triggered . | . . . Disarmed . | . . . Reprogrammed . | . . . Reused . | . . . Traps Extracted . | . . . Installed . | . . . Triggered . | . . . Machines | -11 -10 -10 ---------- Run | Yrd Mat Min Machines Disabled 3 | . 3 . Max in Single Turn 1 | . 1 . Machines Repaired . | . . . Machines Dismantled . | . . . Machines Sabotaged . | . . . Overloaded Fab Kills . | . . . Hacking | -11 -10 -10 --------- Run | Yrd Mat Min Machines Accessed 8 | . 8 . Terminals 5 | . 5 . Fabricators . | . . . Repair Stations 1 | . 1 . Recycling Units 2 | . 2 . Scanalyzers . | . . . Garrison Access . | . . . Total Hacks 20 | . 20 . Successful 9 | . 9 . Failed 11 | . 11 . Catastrophic 2 | . 2 . Database Lockouts . | . . . Manual 11 | . 11 . Terminals 12 | . 12 . Fabricators . | . . . Repair Stations 3 | . 3 . Recycling Units 5 | . 5 . Scanalyzers . | . . . Garrison Access . | . . . Terminal Hacks 1 | . 1 . Branch Access Points 1 | . 1 . Fabricator Hacks . | . . . Repair Station Hacks 3 | . 3 . Scan Component 2 | . 2 . Repair 1 | . 1 . Recycling Unit Hacks 3 | . 3 . Report Inventory 3 | . 3 . Scanalyzer . | . . . Garrison Access Hacks . | . . . Unauthorized Hacks 2 | . 2 . Terminals 1 | . 1 . Botnet 1 | . 1 . Fabricators . | . . . Repair Stations . | . . . Recycling Units 1 | . 1 . Monitor 1 | . 1 . Scanalyzers . | . . . Garrison Access . | . . . Data Cores Recovered . | . . . Used . | . . . Hacking Detections 7 | . 7 . Full Trace Events 4 | . 4 . Feedback Events 1 | . 1 . Corruption 1 | . 1 . Feedback Blocked . | . . . Robot Schematics Acquired . | . . . Robots Built . | . . . Authchips . | . . . Time . | . . . Total Robot Build Rating . | . . . Part Schematics Acquired . | . . . Parts Built . | . . . Authchips . | . . . Time . | . . . Total Part Build Rating . | . . . Parts Repaired 1 | . 1 . Time 26 | . 26 . Parts Recycled . | . . . Recycled Matter . | . . . Retrieved Matter . | . . . Retrieved Components . | . . . Parts Scanalyzed . | . . . Part Schematics Acquired . | . . . Parts Damaged . | . . . Bothacking | -11 -10 -10 ------------ Run | Yrd Mat Min Used RIF Installer . | . . . Robots Hacked . | . . . Non-combat . | . . . Combat . | . . . Robot Hacks Applied . | . . . Relay Couplers Released . | . . . Fabnet Peak Effective % . | . . . Robots Rewired . | . . . Allies Hacked . | . . . Hacks Repelled . | . . . Allies | -11 -10 -10 -------- Run | Yrd Mat Min Total Allies . | . . . Largest Group . | . . . Highest-Rated Group . | . . . Highest-Rated Ally . | . . . Total Orders . | . . . Ally Attacks . | . . . Total Damage . | . . . Kills . | . . . Allies Corrupted . | . . . Allies Melted . | . . . Intel | -11 -10 -10 ------- Run | Yrd Mat Min Robot Analysis Total . | . . . Derelict Logs Recovered . | . . . Drone Launches . | . . . Drone Recoveries . | . . . Exploration | -11 -10 -10 ------------- Run | Yrd Mat Min Turns Passed 1850 | 112 1614 124 Spaces Moved 947 | 62 845 40 Core 24 | 24 . . Treads 923 | 38 845 40 Legs . | . . . Wheels . | . . . Hover . | . . . Flight . | . . . Fastest Speed 50 | 50 160 160 Average Speed 161 | 117 164 160 Slowest Speed 240 | 160 240 160 Overloaded Moves . | . . . Propulsion Burnouts . | . . . Robots Hopped . | . . . Cave-ins Triggered . | . . . Exploration Rate (%) 29 | 5 73 10 Regions Visited 2 Branch Regions 1 Pre-discovered Areas . | . . . Known Exits Taken 1 | . 1 . Unknown Exits Taken 1 | 1 . . Scrap Searched . | . . . Spaces Dug 1 | . 1 . Terrain Destroyed 1 | . 1 . Melee . | . . . Projectile 1 | . 1 . AOE . | . . . Terrain Rammed . | . . . Walls Destroyed . | . . . Machines Disabled . | . . . Actions | -11 -10 -10 --------- Run | Yrd Mat Min Total 1149 | 90 986 73 Wait 82 | 8 58 16 Move 945 | 61 844 40 Hop . | . . . Pick Up 29 | 8 21 . Fast Attach 2 | 2 . . Attach 11 | 5 5 1 Detach . | . . . Swap 4 | . 4 . Drop 8 | . 8 . Fire 68 | 6 46 16 Melee . | . . . Ram . | . . . Kick . | . . . Crush . | . . . Escape Stasis . | . . . Rewire . | . . . Trap . | . . . Miscellaneous . | . . . Route ------- -11/Scrapyard -10/Materials (discovered 2 exits: [*Mat] / *Min) -10/Mines History --------- Turn | Location | Event 8 | -11/Scrapyard | Discovered new exit (range 14) 113 | -11/Scrapyard | Entered Materials 309 | -10/Materials | Build established: Mutant 793 | -10/Materials | Discovered new exit (range 12) 920 | -10/Materials | Discovered new exit (range 15) 1130 | -10/Materials | Destroyed 7 combat bots 1283 | -10/Materials | Identified exit to Mines 1384 | -10/Materials | Core integrity fell below 50% 1698 | -10/Materials | Repaired Lgt. Treads 1727 | -10/Materials | Entered Mines 1728 | -10/Mines | Assembled infested the area 1839 | -10/Mines | Core integrity fell below 20% 1851 | -10/Mines | Destroyed by as-72809 with Assembled Heavy Rifle Last Messages --------------- GOAL=ESCAPE ALERT: Infestation in the mines, dispatching Demolisher response squad. T-07 Excavator destroyed. as-45818 knocked back. as-45818 destroyed. Acquired 13 matter. Beam Cannon destroyed. as-98234 knocked back. as-36537 knocked back. as-36537 destroyed. as-42140 destroyed. Acquired 2 matter. Acquired 5 matter. Acquired 6 matter. Destroyed Asb. F-torch. as-59823 knocked back. Critical hit (Burn: +80). as-97052 knocked back. System corrupted: Lgt. Cannon rejected. Map ----- +----------------------------------------------------+ | | | | | | | | | | | | | | | | | | | | | | | | | | | | | | | | | | | | | | | | | | | ?????????????????????????????????????????????????? | | ?????????????????????????????????????????????????? | | ??????????????????#######????????????????????????? | | ?????????????????## % #####????????????????????? | | ?????????????????# @ a#????????????????????? | | ?????????????????# a## #????????????????????? | | ?????????????????# ## #????????????????????? | | ????????????????# ## ## #????????????????????? | | ????????????? a###a ## #????????????????????? | | ????????? ##?# ## ##???????????????????? | | ??????? ##??# #???????????????????? | | ??????? #????# #???????????????????? | | ??????? #?????##### %#???????????????????? | | ??????# % ??????????# #???????????????????? | | ???????#%== ??????????#% #???????????????????? | | ???????#==! ???????????# #???????????????????? | | ??????? #???????????# #???????????????????? | | ??????? #????????????# #???????????????????? | | ????????? #?????????????# #???????????????????? | | ??????????????????????????# #???????????????????? | | ??????????????????????????# #???????????????????? | | ??????????????????????????# #???????????????????? | | ?????????????????????????? #???????????????????? | | ?????????????????????????? #???????????????????? | | ?????????????????????????? ???????????????????? | | ?????????????????????????? ???????????????????? | | ?????????????????????????## #???????????????????? | | ??????????????????????????# ????????????????????? | | ??????????????????????????? ????????????????????? | +----------------------------------------------------+ Best States ------------- Heat Dissipation 25 Energy Generation 14 Energy Capacity 250 Matter Stores 300 Matter Capacity 300 Sight Range 16 Terrain Scan Density 10 Evasion (%) 50 Recoil Reduction 2 Item Schematics ----------------- None Robot Schematics ------------------ None Fabricated ------------ Nothing Alien Tech Used ----------------- None Achievements -------------- None Challenges ------------ None Game ------ Seed BurstBottomlessCyclogen Manual? 0 Play Time 00:14:50 Cumulative 2.9 hours Start 2025.01.11 @ 16:09:57 End 2025.01.11 @ 16:23:26 Sessions 1 Manual Loads 0 Difficulty Rogue Special Mode None Game No. 8 Rogue 8 Adventurer 0 Explorer 0 Win Type - Total 0 Types 0/0/0/0/0/0/0/0/0 Lore% 8 Gallery% 5 Achievement% 8 Wizard Run 0 Options --------- Layout 1 ASCII 0 Keyboard 0 Movement Mouse Keybinds 0 Fullscreen 2 Font 32/SmallcapsGlow Map View 50x35 Zoom Use 0% Tactical HUD 0 Map Filters NONE Filters NONE Steam 1 RUN: 2ef6f9ad-aac6-45bf-b8d0-3960ca1ec4f5